Workbook

Sheet Input Demand
A1: Demand Charateristics
A2: Parameter | B2: Input Data (full time period) | C2: Input Data (single day) | D2: Input to Model (single day, correction) | E2: Unit
A3: No of days | B3: 22 | C3: 1 | D3: 1
A4: Total Distance | B4: =ROUND((D9/100)*B5,0)*Constraints!B22+ROUND((D10/100)*B5,0)*Constraints!C22+ROUND((D11/100)*B5,0)*Constraints!D22 -> 17523.0 | C4: =B4/B3 -> 796.5 | D4: =Constraints!B24*Constraints!B22+Constraints!C24*Constraints!C22+Constraints!D24*Constraints!D22 -> 807.0 | E4: km
A5: No of Missions | B5: 847 | C5: =B5/B3 -> 39 | D5: =ROUND(D9/100*C5,0)+ROUND(D10/100*C5,0)+ROUND(D11/100*C5,0) -> 38
A6: No of Passengers | B6: 900 | D6: =ROUNDUP(B6/B3,0) -> 41
A7: Concurrency | B7: 34 | D7: =B7 -> 34 | E7: %
A8: Min number of vehicles | D8: 0
A9: Short Trips | D9: 50 | E9: %
A10: Middle Trips | D10: 35 | E10: %
A11: Long Trips | D11: =100-D9-D10 -> 15 | E11: %

Sheet Input Cost
A1: Fixed Cost per Vehicle
A3: Currency | B3: Euro
A5: Vehicle Type | B5: Value | C5: Unit | D5: Value | E5: Unit
A6: =A19 -> Core-Drive | D6: =SUM(D9:D13) -> 59.03 | E6: =CONCATENATE($B$3,"/day") -> Euro/day
A7: =A20 -> Outsourced | D7: 40.00 | E7: =CONCATENATE($B$3,"/day") -> Euro/day
A9: Asset | B9: 1998 | C9: =CONCATENATE($B$3,"/year") -> Euro/year | D9: =B9/250 -> 7.99 | E9: =CONCATENATE($B$3,"/day") -> Euro/day
A10: Technology | B10: 136 | C10: =CONCATENATE($B$3,"/year") -> Euro/year | D10: =B10/250 -> 0.54 | E10: =CONCATENATE($B$3,"/day") -> Euro/day
A11: Labour (core drive) | B11: 11880 | C11: Euro/year | D11: =B11/250 -> 47.52 | E11: Euro/day
A12: Insurance | B12: 680 | C12: Euro/year | D12: =B12/250 -> 2.72 | E12: Euro/day
A13: Other | B13: 63 | C13: Euro/year | D13: =B13/250 -> 0.25 | E13: Euro/day
A17: Variable Costs per Vehicle
A18: Transporation Mode | B18: Value | C18: Unit
A19: Core-Drive | B19: 0.12 | C19: =CONCATENATE($B$3,"/km") -> Euro/km
A20: Outsourced | B20: 0 | C20: =CONCATENATE($B$3,"/km") -> Euro/km
A21: Taxi | B21: 0.6 | C21: Euro/km | D21: 1.5 | E21: =CONCATENATE($B$3," for Call-out and first") -> Euro for Call-out and first | F21: 1.5 | G21: km free and | H21: 15 | I21: % off

Sheet Constraints
A1: Max. Utilization per Vehicle per day
B2: ='Input Cost'!A19 -> Core-Drive | C2: ='Input Cost'!A20 -> Outsourced | D2: Unit | E2: Taxi
A3: Distance travelled | B3: 120 | C3: 120 | D3: km/day | E3: - | F3: per trip
A4: Max. possible missions | B4: 5 | C4: 5 | D4: missions per day | E4: - | F4: per trip | G4: Missions per vehicle per day not part of the optimization (just for the plots)
A5: No of Passengers per trip | B5: 3 | C5: 3 | D5: per trip | E5: 3 | F5: per trip
A6: Effective time (time budget) | B6: 8 | C6: 8 | D6: hours per day
A11: Trip duration | B11: short trip | C11: middle trip | D11: long trip
A12: Core-Drive | B12: 1.5 | C12: 2 | D12: 8
A13: Outsourced | B13: 1.5 | C13: 2 | D13: 8
A14: Taxi | B14: not relevant to the model
A16: Distance factor | B16: short trip | C16: middle trip | D16: long trip
A17: Core-Drive | B17: 4 | C17: 3 | D17: 2
A18: Outsourced | B18: 4 | C18: 3 | D18: 2
A19: Taxi | B19: 2 | C19: 2 | D19: 2
A21: Trips | B21: short | C21: middle | D21: long
A22: Avg. distance single leg [km] | B22: 4 | C22: 17 | D22: 85
A23: Bounds [km] | B23: [0-10] | C23: [10-40] | D23: [40…] | E23: only additional information (not for the model)
A24: No. missions | B24: =ROUND('Input Demand'!D9/100*'Input Demand'!D5,0) -> 19 | C24: =ROUND('Input Demand'!D10/100*'Input Demand'!D5,0) -> 13 | D24: =ROUND('Input Demand'!D11/100*'Input Demand'!D5,0) -> 6

Sheet Solver
B2: Excel Solver Sheet
A4: Total Cost (per day) | B4: =B5+B8 -> 685.24 | C4: ='Input Cost'!$B$3 -> Euro
A5: Fix Costs (per day) | B5: =SUM(B6:B7) -> 520.00 | C5: ='Input Cost'!$B$3 -> Euro
A6: ='Input Cost'!A19 -> Core-Drive | B6: =B14*'Input Cost'!D6 -> 0.00 | C6: ='Input Cost'!$B$3 -> Euro
A7: ='Input Cost'!A20 -> Outsourced | B7: =B15*'Input Cost'!D7 -> 520.00 | C7: ='Input Cost'!$B$3 -> Euro
A8: Variable Costs (per day) | B8: =SUM(B9:B11) -> 165.24 | C8: ='Input Cost'!$B$3 -> Euro
A9: ='Input Cost'!A19 -> Core-Drive | B9: =E18*'Input Cost'!B19 -> 0.00 | C9: ='Input Cost'!$B$3 -> Euro
A10: ='Input Cost'!A20 -> Outsourced | B10: =E19*'Input Cost'!B20 -> 0.00 | C10: ='Input Cost'!$B$3 -> Euro
A11: ='Input Cost'!A21 -> Taxi | B11: =((E20-'Input Cost'!F21*SUM(B20:D20))*'Input Cost'!B21+SUM(B20:D20)*'Input Cost'!D21)*(1-'Input Cost'!H21/100) -> 165.24 | C11: ='Input Cost'!$B$3 -> Euro
A13: Fleet Composition
A14: ='Input Cost'!A19 -> Core-Drive | B14: 0 | C14: vehicles | J14: s
A15: ='Input Cost'!A20 -> Outsourced | B15: 13 | C15: vehicles
A16: Taxi Trips | B16: =SUM(B20:D20) -> 18 | C16: trips
A17: Operational Mix (per day) | B17: short missions | C17: middle missions | D17: long missions | E17: total km | F17: no_missions | G17: no_vehicles | H17: max.
A18: ='Input Cost'!A19 -> Core-Drive | B18: 0 | C18: 0 | D18: 0 | E18: =SUMPRODUCT(B18:D18,DistanceFactorCoreDrive,DistancesTripTypes) -> 0.00 | F18: =SUM(B18:D18) -> 0 | G18: =B14 -> 0 | H18: =MAX(F18:G18) -> 0
A19: ='Input Cost'!A20 -> Outsourced | B19: 2 | C19: 13 | D19: 5 | E19: =SUMPRODUCT(B19:D19,DistanceFactorOutsourced,DistancesTripTypes) -> 1545.00 | F19: =SUM(B19:D19) -> 20 | G19: =B15 -> 13 | H19: =MAX(F19:G19) -> 20
A20: ='Input Cost'!A21 -> Taxi | B20: 17 | C20: 0 | D20: 1 | E20: =SUMPRODUCT(B20:D20,DistanceFactorTaxi,DistancesTripTypes) -> 306.00
C21: total no. of missions: | D21: =SUM(B18:D20) -> 38
A22: Constraints | B22: Max. possible with current solution | D22: required
A23: Missions covered short | B23: =SUM(B18:B20) -> 19 | C23: = | D23: =Constraints!B24 -> 19
A24: Missions covered middle | B24: =SUM(C18:C20) -> 13 | C24: = | D24: =Constraints!C24 -> 13
A25: Missions covered long | B25: =SUM(D18:D20) -> 6 | C25: = | D25: =Constraints!D24 -> 6
A26: No concurrent trips | B26: =SUM(B14:B15)+SUM(B20:D20) -> 31 | C26: >= | D26: =ROUNDUP('Input Demand'!D7/100*'Input Demand'!D5,0) -> 13
A27: Min number of vehicles (safety constraint) | B27: =SUM(B14:B14) -> 0 | C27: >= | D27: ='Input Demand'!D8 -> 0
A28: ='Input Cost'!A19 -> Core-Drive | B28: =B14*Constraints!B3 -> 0.00 | C28: >= | D28: =E18 -> 0.00 | E28: Distance Constraints
A29: ='Input Cost'!A20 -> Outsourced | B29: =B15*Constraints!C3 -> 1560.00 | C29: >= | D29: =E19 -> 1545.00
A30: ='Input Cost'!A19 -> Core-Drive | B30: =B14*Constraints!B6 -> 0.00 | C30: >= | D30: =SUMPRODUCT(B18:D18,Constraints!B12:D12) -> 0.00 | E30: Time Constraints
A31: ='Input Cost'!A20 -> Outsourced | B31: =B15*Constraints!C6 -> 104.00 | C31: >= | D31: =SUMPRODUCT(B19:D19,Constraints!B13:D13) -> 69.00

Sheet Dashboard
B2: Summary: Fleet Size and Composition
C5: Cost per km single trip | E5: Cost per km | J5: Cost per km single trip | L5: Cost per km
C6: Utilization | D6: km | E6: ='Input Cost'!A19 -> Core-Drive | F6: ='Input Cost'!A20 -> Outsourced | G6: ='Input Cost'!A21 -> Taxi | I6: Utilization | J6: km | K6: ='Input Cost'!A19 -> Core-Drive | L6: ='Input Cost'!A20 -> Outsourced | M6: ='Input Cost'!A21 -> Taxi
C7: 0.01 | D7: =Constraints!$B$3*C7 -> 1.2 | E7: =('Input Cost'!$D$6+'Input Cost'!$B$19*D7)/D7 -> 49.31 | F7: =('Input Cost'!$D$7+'Input Cost'!$B$20*D7)/D7 -> 33.33 | G7: =IF(D7<'Input Cost'!F21,'Input Cost'!D21,((('Input Cost'!$B$21*(D7-'Input Cost'!F21)+'Input Cost'!$D$21)/D7)))*(1-'Input Cost'!$H$21/100) -> 1.28 | I7: 0.01 | J7: =Constraints!$B$3*I7 -> 1.2 | K7: =('Input Cost'!$D$6/Constraints!$B$4+'Input Cost'!$B$19*J7)/J7 -> 9.96 | L7: =('Input Cost'!$D$7/Constraints!$C$4+'Input Cost'!$B$20*J7)/J7 -> 6.67 | M7: =IF(J7<'Input Cost'!F21,'Input Cost'!D21,((('Input Cost'!$B$21*(J7-'Input Cost'!F21)+'Input Cost'!$D$21)/J7)))*(1-'Input Cost'!$H$21/100) -> 1.28
C8: 0.02 | D8: =Constraints!$B$3*C8 -> 2.4 | E8: =('Input Cost'!$D$6+'Input Cost'!$B$19*D8)/D8 -> 24.72 | F8: =('Input Cost'!$D$7+'Input Cost'!$B$20*D8)/D8 -> 16.67 | G8: =IF(D8<'Input Cost'!F22,'Input Cost'!D22,((('Input Cost'!$B$21*(D8-'Input Cost'!F22)+'Input Cost'!$D$21)/D8)))*(1-'Input Cost'!$H$21/100) -> 1.04 | I8: 0.02 | J8: =Constraints!$B$3*I8 -> 2.4 | K8: =('Input Cost'!$D$6/Constraints!$B$4+'Input Cost'!$B$19*J8)/J8 -> 5.04 | L8: =('Input Cost'!$D$7/Constraints!$C$4+'Input Cost'!$B$20*J8)/J8 -> 3.33 | M8: =IF(J8<'Input Cost'!F22,'Input Cost'!D22,((('Input Cost'!$B$21*(J8-'Input Cost'!F22)+'Input Cost'!$D$21)/J8)))*(1-'Input Cost'!$H$21/100) -> 1.04
C9: 0.05 | D9: =Constraints!$B$3*C9 -> 6 | E9: =('Input Cost'!$D$6+'Input Cost'!$B$19*D9)/D9 -> 9.96 | F9: =('Input Cost'!$D$7+'Input Cost'!$B$20*D9)/D9 -> 6.67 | G9: =IF(D9<'Input Cost'!F23,'Input Cost'!D23,((('Input Cost'!$B$21*(D9-'Input Cost'!F23)+'Input Cost'!$D$21)/D9)))*(1-'Input Cost'!$H$21/100) -> 0.72 | I9: 0.05 | J9: =Constraints!$B$3*I9 -> 6 | K9: =('Input Cost'!$D$6/Constraints!$B$4+'Input Cost'!$B$19*J9)/J9 -> 2.09 | L9: =('Input Cost'!$D$7/Constraints!$C$4+'Input Cost'!$B$20*J9)/J9 -> 1.33 | M9: =IF(J9<'Input Cost'!F23,'Input Cost'!D23,((('Input Cost'!$B$21*(J9-'Input Cost'!F23)+'Input Cost'!$D$21)/J9)))*(1-'Input Cost'!$H$21/100) -> 0.72
C10: 0.1 | D10: =Constraints!$B$3*C10 -> 12 | E10: =('Input Cost'!$D$6+'Input Cost'!$B$19*D10)/D10 -> 5.04 | F10: =('Input Cost'!$D$7+'Input Cost'!$B$20*D10)/D10 -> 3.33 | G10: =IF(D10<'Input Cost'!F24,'Input Cost'!D24,((('Input Cost'!$B$21*(D10-'Input Cost'!F24)+'Input Cost'!$D$21)/D10)))*(1-'Input Cost'!$H$21/100) -> 0.62 | I10: 0.1 | J10: =Constraints!$B$3*I10 -> 12 | K10: =('Input Cost'!$D$6/Constraints!$B$4+'Input Cost'!$B$19*J10)/J10 -> 1.10 | L10: =('Input Cost'!$D$7/Constraints!$C$4+'Input Cost'!$B$20*J10)/J10 -> 0.67 | M10: =IF(J10<'Input Cost'!F24,'Input Cost'!D24,((('Input Cost'!$B$21*(J10-'Input Cost'!F24)+'Input Cost'!$D$21)/J10)))*(1-'Input Cost'!$H$21/100) -> 0.62
A11: Cost Analysis | C11: 0.2 | D11: =Constraints!$B$3*C11 -> 24 | E11: =('Input Cost'!$D$6+'Input Cost'!$B$19*D11)/D11 -> 2.58 | F11: =('Input Cost'!$D$7+'Input Cost'!$B$20*D11)/D11 -> 1.67 | G11: =IF(D11<'Input Cost'!F25,'Input Cost'!D25,((('Input Cost'!$B$21*(D11-'Input Cost'!F25)+'Input Cost'!$D$21)/D11)))*(1-'Input Cost'!$H$21/100) -> 0.56 | I11: 0.2 | J11: =Constraints!$B$3*I11 -> 24 | K11: =('Input Cost'!$D$6/Constraints!$B$4+'Input Cost'!$B$19*J11)/J11 -> 0.61 | L11: =('Input Cost'!$D$7/Constraints!$C$4+'Input Cost'!$B$20*J11)/J11 -> 0.33 | M11: =IF(J11<'Input Cost'!F25,'Input Cost'!D25,((('Input Cost'!$B$21*(J11-'Input Cost'!F25)+'Input Cost'!$D$21)/J11)))*(1-'Input Cost'!$H$21/100) -> 0.56
C12: 0.3 | D12: =Constraints!$B$3*C12 -> 36 | E12: =('Input Cost'!$D$6+'Input Cost'!$B$19*D12)/D12 -> 1.76 | F12: =('Input Cost'!$D$7+'Input Cost'!$B$20*D12)/D12 -> 1.11 | G12: =IF(D12<'Input Cost'!F26,'Input Cost'!D26,((('Input Cost'!$B$21*(D12-'Input Cost'!F26)+'Input Cost'!$D$21)/D12)))*(1-'Input Cost'!$H$21/100) -> 0.55 | I12: 0.3 | J12: =Constraints!$B$3*I12 -> 36 | K12: =('Input Cost'!$D$6/Constraints!$B$4+'Input Cost'!$B$19*J12)/J12 -> 0.45 | L12: =('Input Cost'!$D$7/Constraints!$C$4+'Input Cost'!$B$20*J12)/J12 -> 0.22 | M12: =IF(J12<'Input Cost'!F26,'Input Cost'!D26,((('Input Cost'!$B$21*(J12-'Input Cost'!F26)+'Input Cost'!$D$21)/J12)))*(1-'Input Cost'!$H$21/100) -> 0.55
C13: 0.4 | D13: =Constraints!$B$3*C13 -> 48 | E13: =('Input Cost'!$D$6+'Input Cost'!$B$19*D13)/D13 -> 1.35 | F13: =('Input Cost'!$D$7+'Input Cost'!$B$20*D13)/D13 -> 0.83 | G13: =IF(D13<'Input Cost'!F27,'Input Cost'!D27,((('Input Cost'!$B$21*(D13-'Input Cost'!F27)+'Input Cost'!$D$21)/D13)))*(1-'Input Cost'!$H$21/100) -> 0.54 | I13: 0.4 | J13: =Constraints!$B$3*I13 -> 48 | K13: =('Input Cost'!$D$6/Constraints!$B$4+'Input Cost'!$B$19*J13)/J13 -> 0.37 | L13: =('Input Cost'!$D$7/Constraints!$C$4+'Input Cost'!$B$20*J13)/J13 -> 0.17 | M13: =IF(J13<'Input Cost'!F27,'Input Cost'!D27,((('Input Cost'!$B$21*(J13-'Input Cost'!F27)+'Input Cost'!$D$21)/J13)))*(1-'Input Cost'!$H$21/100) -> 0.54
C14: 0.5 | D14: =Constraints!$B$3*C14 -> 60 | E14: =('Input Cost'!$D$6+'Input Cost'!$B$19*D14)/D14 -> 1.10 | F14: =('Input Cost'!$D$7+'Input Cost'!$B$20*D14)/D14 -> 0.67 | G14: =IF(D14<'Input Cost'!F28,'Input Cost'!D28,((('Input Cost'!$B$21*(D14-'Input Cost'!F28)+'Input Cost'!$D$21)/D14)))*(1-'Input Cost'!$H$21/100) -> 0.53 | I14: 0.5 | J14: =Constraints!$B$3*I14 -> 60 | K14: =('Input Cost'!$D$6/Constraints!$B$4+'Input Cost'!$B$19*J14)/J14 -> 0.32 | L14: =('Input Cost'!$D$7/Constraints!$C$4+'Input Cost'!$B$20*J14)/J14 -> 0.13 | M14: =IF(J14<'Input Cost'!F28,'Input Cost'!D28,((('Input Cost'!$B$21*(J14-'Input Cost'!F28)+'Input Cost'!$D$21)/J14)))*(1-'Input Cost'!$H$21/100) -> 0.53
C15: 0.6 | D15: =Constraints!$B$3*C15 -> 72 | E15: =('Input Cost'!$D$6+'Input Cost'!$B$19*D15)/D15 -> 0.94 | F15: =('Input Cost'!$D$7+'Input Cost'!$B$20*D15)/D15 -> 0.56 | G15: =IF(D15<'Input Cost'!F29,'Input Cost'!D29,((('Input Cost'!$B$21*(D15-'Input Cost'!F29)+'Input Cost'!$D$21)/D15)))*(1-'Input Cost'!$H$21/100) -> 0.53 | I15: 0.6 | J15: =Constraints!$B$3*I15 -> 72 | K15: =('Input Cost'!$D$6/Constraints!$B$4+'Input Cost'!$B$19*J15)/J15 -> 0.28 | L15: =('Input Cost'!$D$7/Constraints!$C$4+'Input Cost'!$B$20*J15)/J15 -> 0.11 | M15: =IF(J15<'Input Cost'!F29,'Input Cost'!D29,((('Input Cost'!$B$21*(J15-'Input Cost'!F29)+'Input Cost'!$D$21)/J15)))*(1-'Input Cost'!$H$21/100) -> 0.53
C16: 0.7 | D16: =Constraints!$B$3*C16 -> 84 | E16: =('Input Cost'!$D$6+'Input Cost'!$B$19*D16)/D16 -> 0.82 | F16: =('Input Cost'!$D$7+'Input Cost'!$B$20*D16)/D16 -> 0.48 | G16: =IF(D16<'Input Cost'!F30,'Input Cost'!D30,((('Input Cost'!$B$21*(D16-'Input Cost'!F30)+'Input Cost'!$D$21)/D16)))*(1-'Input Cost'!$H$21/100) -> 0.53 | I16: 0.7 | J16: =Constraints!$B$3*I16 -> 84 | K16: =('Input Cost'!$D$6/Constraints!$B$4+'Input Cost'!$B$19*J16)/J16 -> 0.26 | L16: =('Input Cost'!$D$7/Constraints!$C$4+'Input Cost'!$B$20*J16)/J16 -> 0.10 | M16: =IF(J16<'Input Cost'!F30,'Input Cost'!D30,((('Input Cost'!$B$21*(J16-'Input Cost'!F30)+'Input Cost'!$D$21)/J16)))*(1-'Input Cost'!$H$21/100) -> 0.53
C17: 0.8 | D17: =Constraints!$B$3*C17 -> 96 | E17: =('Input Cost'!$D$6+'Input Cost'!$B$19*D17)/D17 -> 0.73 | F17: =('Input Cost'!$D$7+'Input Cost'!$B$20*D17)/D17 -> 0.42 | G17: =IF(D17<'Input Cost'!F31,'Input Cost'!D31,((('Input Cost'!$B$21*(D17-'Input Cost'!F31)+'Input Cost'!$D$21)/D17)))*(1-'Input Cost'!$H$21/100) -> 0.52 | I17: 0.8 | J17: =Constraints!$B$3*I17 -> 96 | K17: =('Input Cost'!$D$6/Constraints!$B$4+'Input Cost'!$B$19*J17)/J17 -> 0.24 | L17: =('Input Cost'!$D$7/Constraints!$C$4+'Input Cost'!$B$20*J17)/J17 -> 0.08 | M17: =IF(J17<'Input Cost'!F31,'Input Cost'!D31,((('Input Cost'!$B$21*(J17-'Input Cost'!F31)+'Input Cost'!$D$21)/J17)))*(1-'Input Cost'!$H$21/100) -> 0.52
C18: 0.9 | D18: =Constraints!$B$3*C18 -> 108 | E18: =('Input Cost'!$D$6+'Input Cost'!$B$19*D18)/D18 -> 0.67 | F18: =('Input Cost'!$D$7+'Input Cost'!$B$20*D18)/D18 -> 0.37 | G18: =IF(D18<'Input Cost'!F32,'Input Cost'!D32,((('Input Cost'!$B$21*(D18-'Input Cost'!F32)+'Input Cost'!$D$21)/D18)))*(1-'Input Cost'!$H$21/100) -> 0.52 | I18: 0.9 | J18: =Constraints!$B$3*I18 -> 108 | K18: =('Input Cost'!$D$6/Constraints!$B$4+'Input Cost'!$B$19*J18)/J18 -> 0.23 | L18: =('Input Cost'!$D$7/Constraints!$C$4+'Input Cost'!$B$20*J18)/J18 -> 0.07 | M18: =IF(J18<'Input Cost'!F32,'Input Cost'!D32,((('Input Cost'!$B$21*(J18-'Input Cost'!F32)+'Input Cost'!$D$21)/J18)))*(1-'Input Cost'!$H$21/100) -> 0.52
C19: 1 | D19: =Constraints!$B$3*C19 -> 120 | E19: =('Input Cost'!$D$6+'Input Cost'!$B$19*D19)/D19 -> 0.61 | F19: =('Input Cost'!$D$7+'Input Cost'!$B$20*D19)/D19 -> 0.33 | G19: =IF(D19<'Input Cost'!F33,'Input Cost'!D33,((('Input Cost'!$B$21*(D19-'Input Cost'!F33)+'Input Cost'!$D$21)/D19)))*(1-'Input Cost'!$H$21/100) -> 0.52 | I19: 1 | J19: =Constraints!$B$3*I19 -> 120 | K19: =('Input Cost'!$D$6/Constraints!$B$4+'Input Cost'!$B$19*J19)/J19 -> 0.22 | L19: =('Input Cost'!$D$7/Constraints!$C$4+'Input Cost'!$B$20*J19)/J19 -> 0.07 | M19: =IF(J19<'Input Cost'!F33,'Input Cost'!D33,((('Input Cost'!$B$21*(J19-'Input Cost'!F33)+'Input Cost'!$D$21)/J19)))*(1-'Input Cost'!$H$21/100) -> 0.52
C21: Cost per Mission | E21: Cost per Mission
E22: Self-Drive | F22: Core Drive | G22: Outsourced | H22: Taxi
B25: Transportation Mode | C25: Fleet | D25: short Missions | E25: middle Missions | F25: long Missions | G25: Missions | H25: Distance
A26: Operational Mix | B26: ='Input Cost'!A19 -> Core-Drive | C26: =Solver!B14 -> 0 | D26: =Solver!B18 -> 0 | E26: =Solver!C18 -> 0 | F26: =Solver!D18 -> 0 | G26: =SUM(D26:F26) -> 0 | H26: =Solver!E18 -> 0.00
B27: ='Input Cost'!A20 -> Outsourced | C27: =Solver!B15 -> 13 | D27: =Solver!B19 -> 2 | E27: =Solver!C19 -> 13 | F27: =Solver!D19 -> 5 | G27: =SUM(D27:F27) -> 20 | H27: =Solver!E19 -> 1545.00
A28: Trips | B28: ='Input Cost'!A21&" "&A28 -> Taxi Trips | C28: =SUM(D28:F28) -> 18 | D28: =Solver!B20 -> 17 | E28: =Solver!C20 -> 0 | F28: =Solver!D20 -> 1 | G28: =SUM(D28:F28) -> 18 | H28: =Solver!E20 -> 306.00

Sheet Cost Savings Opportunity
A2: Time period for savings plots | B2: 250 | C2: days
A4: Time period for cost input | B4: 25 | C4: days
A5: Type | B5: Status quo | E5: Status quo (per day) | F5: Status quo (per plot period) | G5: Min. to meet demand (per day) | H5: Min. to meet demand (per plot period) | I5: Savings potential (plot period) | J5: Savings [%]
A6: Vehicles (Buy - Resale Value) | B6: =12869.3333333333 -> 12869.33 | C6: =CONCATENATE('Input Cost'!$B$3,"/period") -> Euro/period | E6: =B6/$B$4 -> 514.77 | F6: =E6*'Cost Savings Opportunity'!$B$2 -> 128693.33 | G6: =G17*'Input Cost'!D9 -> 0.00 | H6: =G6*'Cost Savings Opportunity'!$B$2 -> 0.00 | I6: =F6-H6 -> 128693.33 | J6: =IF(F6<>0,(F6-H6)/F6*100,0) -> 100.00
A7: Technology | B7: 4549.14 | C7: =CONCATENATE('Input Cost'!$B$3,"/period") -> Euro/period | E7: =B7/$B$4 -> 181.97 | F7: =E7*'Cost Savings Opportunity'!$B$2 -> 45491.37 | G7: =G17*'Input Cost'!D10 -> 0.00 | H7: =G7*'Cost Savings Opportunity'!$B$2 -> 0.00 | I7: =F7-H7 -> 45491.37 | J7: =IF(F7<>0,(F7-H7)/F7*100,0) -> 100.00
A8: Salary (core drive) | B8: 15695.00 | C8: =CONCATENATE('Input Cost'!$B$3,"/period") -> Euro/period | E8: 627.80 | F8: =E8*'Cost Savings Opportunity'!$B$2 -> 156950.00 | G8: =G16*'Input Cost'!D11 -> 0.00 | H8: =G8*'Cost Savings Opportunity'!$B$2 -> 0.00 | I8: 156950.00 | J8: 100.00
A9: Insurance | B9: 3358.68 | C9: =CONCATENATE('Input Cost'!$B$3,"/period") -> Euro/period | E9: 134.35 | F9: =E9*'Cost Savings Opportunity'!$B$2 -> 33586.78 | G9: =G17*'Input Cost'!D12 -> 0.00 | H9: =G9*'Cost Savings Opportunity'!$B$2 -> 0.00 | I9: =F9-H9 -> 33586.78 | J9: 100.00
A10: Other | B10: 331.69 | C10: =CONCATENATE('Input Cost'!$B$3,"/period") -> Euro/period | E10: 13.27 | F10: =E10*'Cost Savings Opportunity'!$B$2 -> 3316.93 | G10: =G17*'Input Cost'!D13 -> 0.00 | H10: =G10*'Cost Savings Opportunity'!$B$2 -> 0.00 | I10: 3316.93 | J10: 100.00
A12: Cost for Outsourcing | B12: 0.00 | C12: =CONCATENATE('Input Cost'!$B$3,"/period") -> Euro/period | E12: 0.00 | F12: =E12*'Cost Savings Opportunity'!$B$2 -> 0.00 | G12: =Solver!B7+Solver!B10 -> 520.00 | H12: =G12*'Cost Savings Opportunity'!$B$2 -> 130000.00 | I12: -130000.00 | J12: 0.00
A13: Cost for Taxi Services | B13: 11108.15 | C13: =CONCATENATE('Input Cost'!$B$3,"/period") -> Euro/period | E13: 444.33 | F13: =E13*'Cost Savings Opportunity'!$B$2 -> 111081.48 | G13: =Solver!B11 -> 165.24 | H13: =G13*'Cost Savings Opportunity'!$B$2 -> 41310.00 | I13: 69771.48 | J13: 62.81
A14: Cost for Fuel + M&R | B14: =1418.6825+1319.31 -> 2737.99 | C14: =CONCATENATE('Input Cost'!$B$3,"/period") -> Euro/period | E14: 109.52 | F14: =E14*'Cost Savings Opportunity'!$B$2 -> 27379.93 | G14: =Solver!B9 -> 0.00 | H14: =G14*'Cost Savings Opportunity'!$B$2 -> 0.00 | I14: 27379.93 | J14: 100.00
A16: No drivers | B16: 20 | E16: =B16 -> 20 | F16: =B16 -> 20 | G16: =Solver!B14 -> 0 | H16: =G16 -> 0 | I16: =F16-H16 -> 20 | J16: 100
A17: No vehicles | B17: 57 | E17: =B17 -> 57 | F17: =B17 -> 57 | G17: =Solver!B14 -> 0 | H17: =G17 -> 0 | I17: =F17-H17 -> 57 | J17: 100
A24: Type | B24: =F5 -> Status quo (per plot period) | C24: =H5 -> Min. to meet demand (per plot period)
A25: Vehicles (Buy - Resale Value) | B25: =F6 -> 128693.33 | C25: =H6 -> 0.00
A26: Technology | B26: =F7 -> 45491.37 | C26: =H7 -> 0.00
A27: Salary (core drive) | B27: 156950.00 | C27: 0.00
A28: Insurance | B28: 33586.78 | C28: 0.00
A29: Other | B29: 3316.93 | C29: 0.00
A31: ='Input Cost'!A20 -> Outsourced | B31: 0.00 | C31: 130000.00
A32: ='Input Cost'!A21 -> Taxi | B32: 111081.48 | C32: 41310.00
A33: Fuel + M&R | B33: 27379.93 | C33: 0.00

Sheet Triangle Analysis
C2: Triangle Analysis
C4: Distance | D4: variable cost | E4: Calculation of number of vehicles | I4: number of vehicles | J4: number of drivers | K4: fix cost | L4: total cost (per day) | M4: total cost (per plot period)
B5: Extremes | E5: hours | F5: distance | G5: concurrency | H5: min no. Vehicles
A6: 100% | B6: ='Input Cost'!A19 -> Core-Drive | C6: =SUMPRODUCT(Constraints!B24:D24,DistanceFactorCoreDrive,DistancesTripTypes) -> 1987.00 | D6: =C6*'Input Cost'!B19 -> 238.44 | E6: =ROUNDUP((SUMPRODUCT(Constraints!B24:D24,Constraints!B12:D12))/Constraints!B6,0) -> 13 | F6: =ROUNDUP((C6/Constraints!B3),0) -> 17 | G6: =Solver!$D$26 -> 13 | H6: =Solver!$D$27 -> 0 | I6: =MAX(E6:H6) -> 17 | J6: =I6 -> 17 | K6: =I6*'Input Cost'!D6 -> 1003.48 | L6: =D6+K6 -> 1241.92 | M6: =L6*'Cost Savings Opportunity'!$B$2 -> 310480.46
A7: 100% | B7: ='Input Cost'!A20 -> Outsourced | C7: =SUMPRODUCT(Constraints!B24:D24,DistanceFactorOutsourced,DistancesTripTypes) -> 1987.00 | D7: =C7*'Input Cost'!B20 -> 0 | E7: =ROUNDUP((SUMPRODUCT(Constraints!B24:D24,Constraints!B13:D13))/Constraints!C6,0) -> 13 | F7: =ROUNDUP((C7/Constraints!C3),0) -> 17 | G7: =Solver!$D$26 -> 13 | H7: =Solver!$D$27 -> 0 | I7: =MAX(E7:H7) -> 17 | J7: 0 | K7: =I7*'Input Cost'!D7 -> 680.00 | L7: =D7+K7 -> 680.00 | M7: =L7*'Cost Savings Opportunity'!$B$2 -> 170000.00
A8: 100% | B8: ='Input Cost'!A21 -> Taxi | C8: =SUMPRODUCT(Constraints!B24:D24,DistanceFactorTaxi,DistancesTripTypes) -> 1614.00 | D8: =((C8-'Input Cost'!F21*'Input Demand'!D5)*'Input Cost'!B21+'Input Cost'!D21*'Input Demand'!D5)*(1-'Input Cost'!H21/100) -> 842.52 | E8: - | F8: - | G8: - | H8: - | I8: - | J8: - | K8: 0.00 | L8: =D8+K8 -> 842.52 | M8: =L8*'Cost Savings Opportunity'!$B$2 -> 210630.00
B9: Status quo | I9: ='Cost Savings Opportunity'!B17 -> 57 | J9: ='Cost Savings Opportunity'!B16 -> 20 | L9: =SUM('Cost Savings Opportunity'!B6:B14)/'Cost Savings Opportunity'!B4 -> 2026.00 | M9: =L9*'Cost Savings Opportunity'!$B$2 -> 506499.80
B10: Optimal Solution | C10: =SUM(Solver!E18:E20) -> 1851.00 | D10: =Solver!B8 -> 165.24 | I10: =Solver!B14 -> 0 | J10: =Solver!B14 -> 0 | K10: =Solver!B5 -> 520.00 | L10: =D10+K10 -> 685.24 | M10: =L10*'Cost Savings Opportunity'!$B$2 -> 171310.00
